[Event "Netanya Open 2019"]
[Site "Netanya"]
[Date "2019.06.27"]
[Round "5.22"]
[White "Emanuel, Yahav"]
[Black "Kochavi, Ori"]
[Result "1-0"]
[ECO "B12"]
[WhiteElo "2359"]
[BlackElo "2152"]
[Annotator "NA"]
[PlyCount "57"]
[EventDate "2019.06.23"]
[EventType "swiss"]
[EventCountry "ISR"]
[SourceTitle "playchess.com"]
[Source "ChessBase"]
[SourceQuality "1"]
[TimeControl "40/5400+30:1800+30"]

1. e4 {[%emt 0:00:00]} c6 {[%emt 0:00:00]} 2. d4 {[%emt 0:00:00]} d5 {[%emt 0:00:00]} 3. e5 {[%emt 0:00:00]} Bf5 {[%emt 0:00:00]} 4. c4 {[%emt 0:00:00]} e6 {[%emt 0:00:00]} 5. Nc3 {[%emt 0:00:05]} dxc4 {[%emt 0:00:08]} 6. Bxc4 {[%emt 0:00:10]} Nd7 {[%emt 0:00:13]} 7. Nge2 {[%emt 0:04:59]} Ne7 {[%emt 0:02:48]} 8. Ng3 {[%emt 0:03:03]} Nb6 {[%emt 0:02:26]} 9. Bb3 {[%emt 0:00:17]} Bg6 {[%emt 0:12:39]} 10. h4 {[%emt 0:04:18]} h6 {[%emt 0:01:22]} 11. h5 {[%emt 0:01:58]} Bh7 {[%emt 0:01:05]} 12. Be3 {[%emt 0:08:41]} Ned5 {[%emt 0:03:58]} 13. Qg4 {[%emt 0:06:57]} Qd7 {[%emt 0:15:13]} 14. Nge4 {[%emt 0:08:47]} O-O-O {[%emt 0:02:26]} 15. O-O {[%emt 0:03:58]} Kb8 {[%emt 0:23:12]} 16. a4 {[%emt 0:21:27]} a5 {[%emt 0:01:11]} 17. Nc5 {[%emt 0:01:25]} Qc7 {[%emt 0:00:06]} 18. N3e4 {[%emt 0:01:49]} Rg8 {[%emt 0:08:01]} 19. Bd2 {[%emt 0:10:18]} f5 {[%emt 0:05:05]} 20. exf6 {[%emt 0:00:18]} gxf6 {[%emt 0:00:49]} 21. Qh4 {[%emt 0:05:56]} Bf5 {[%emt 0:07:56]} 22. f3 {[%emt 0:05:51]} Bxc5 {[%emt 0:09:27]} 23. Nxc5 {[%emt 0:01:32]} e5 {[%emt 0:01:50]} 24. Rf2 {[%emt 0:06:29]} exd4 {[%emt 0:01:24]} 25. Qxd4 {[%emt 0:00:27]} Qe5 {[%emt 0:00:35]} 26. Qxe5+ {[%emt 0:04:15]} fxe5 {[%emt 0:00:04]} 27. Bxh6 {[%emt 0:00:00]} Nf4 {[%emt 0:00:24]} 28. Bxf4 {[%emt 0:00:00]} exf4 {[%emt 0:00:12]} 29. Bxg8 {[%emt 0:01:30]} 1-0

[Event "Netanya Open 2019"]
[Site "Netanya"]
[Date "2019.06.27"]
[Round "5.23"]
[White "Iliaguev, Nisim"]
[Black "Levi, Netanel"]
[Result "1/2-1/2"]
[ECO "E62"]
[WhiteElo "2357"]
[BlackElo "2143"]
[Annotator "NA"]
[PlyCount "177"]
[EventDate "2019.06.23"]
[EventType "swiss"]
[EventCountry "ISR"]
[SourceTitle "playchess.com"]
[Source "ChessBase"]
[SourceQuality "1"]
[TimeControl "40/5400+30:1800+30"]

1. d4 {[%emt 0:00:00]} Nf6 {[%emt 0:00:00]} 2. c4 {[%emt 0:00:00]} d6 {[%emt 0:00:00]} 3. g3 {[%emt 0:00:00]} g6 {[%emt 0:00:25]} 4. Bg2 {[%emt 0:00:03]} Bg7 {[%emt 0:00:02]} 5. Nf3 {[%emt 0:00:27]} O-O {[%emt 0:00:08]} 6. O-O {[%emt 0:00:05]} c6 {[%emt 0:00:07]} 7. Nc3 {[%emt 0:00:39]} Bf5 {[%emt 0:00:04]} 8. Qb3 {[%emt 0:03:13]} Qb6 {[%emt 0:00:49]} 9. Qxb6 {[%emt 0:02:46]} axb6 {[%emt 0:00:06]} 10. Nd2 {[%emt 0:01:06]} e5 {[%emt 0:06:20]} 11. d5 {[%emt 0:03:18]} Re8 {[%emt 0:07:06]} 12. e4 {[%emt 0:01:44]} Bd7 {[%emt 0:02:14]} 13. b3 {[%emt 0:01:54]} b5 {[%emt 0:05:20]} 14. Bb2 {[%emt 0:27:30]} b4 {[%emt 0:03:08]} 15. Ne2 {[%emt 0:00:35]} Na6 {[%emt 0:08:19]} 16. a3 {[%emt 0:02:03]} cxd5 {[%emt 0:02:11]} 17. exd5 {[%emt 0:05:55]} Bh6 {[%emt 0:04:38]} 18. f4 {[%emt 0:09:14]} Ng4 {[%emt 0:04:33]} 19. Ne4 {[%emt 0:01:21]} Bf8 {[%emt 0:05:26]} 20. fxe5 {[%emt 0:19:47]} dxe5 {[%emt 0:01:28]} 21. Bf3 {[%emt 0:09:47]} Bf5 {[%emt 0:01:11]} 22. axb4 {[%emt 0:01:53]} Nxb4 {[%emt 0:02:14]} 23. N2c3 {[%emt 0:00:44]} Kg7 {[%emt 0:17:01]} 24. Bxg4 {[%emt 0:01:07]} Bxg4 {[%emt 0:00:07]} 25. Nf6 {[%emt 0:00:15]} Bc5+ {[%emt 0:01:27]} 26. Kg2 {[%emt 0:01:12]} Nd3 {[%emt 0:00:31]} 27. Nxe8+ {[%emt 0:00:38]} Rxe8 {[%emt 0:00:01]} 28. Ne4 {[%emt 0:01:38]} f5 {[%emt 0:07:47]} 29. Nxc5 {[%emt 0:00:34]} Nxc5 {[%emt 0:00:02]} 30. b4 {[%emt 0:01:51]} Nd3 {[%emt 0:03:39]} 31. Bc3 {[%emt 0:00:12]} Kh6 {[%emt 0:00:22]} 32. d6 {[%emt 0:01:40]} Be2 {[%emt 0:01:00]} 33. Rfb1 {[%emt 0:00:27]} f4 {[%emt 0:00:00]} 34. gxf4 {[%emt 0:01:34]} exf4 {[%emt 0:00:23]} 35. Bf6 {[%emt 0:01:18]} f3+ {[%emt 0:02:18]} 36. Kg3 {[%emt 0:00:04]} f2 {[%emt 0:00:19]} 37. h4 {[%emt 0:00:23]} Re3+ {[%emt 0:01:10]} 38. Kh2 {[%emt 0:00:06]} Kh5 {[%emt 0:01:04]} 39. Bg5 {[%emt 0:00:32]} Bd1 {[%emt 0:08:20]} 40. Rxd1 {[%emt 0:01:09]} Re1 {[%emt 0:00:04]} 41. Rxd3 {[%emt 0:15:46]} f1=Q {[%emt 0:01:15]} 42. Rxe1 {[%emt 0:00:06]} Qxd3 {[%emt 0:02:23]} 43. c5 {[%emt 0:00:40]} h6 {[%emt 0:01:50]} 44. Be3 {[%emt 0:00:30]} Qc3 {[%emt 0:03:07]} 45. Bf2 {[%emt 0:00:42]} Qxb4 {[%emt 0:01:41]} 46. Kg2 {[%emt 0:07:02]} Qg4+ {[%emt 0:02:19]} 47. Bg3 {[%emt 0:00:14]} Qd4 {[%emt 0:00:20]} 48. Bf2 {[%emt 0:00:50]} Qd5+ {[%emt 0:00:26]} 49. Kg3 {[%emt 0:00:22]} b6 {[%emt 0:02:43]} 50. cxb6 {[%emt 0:00:25]} Qxd6+ {[%emt 0:00:02]} 51. Kg2 {[%emt 0:00:12]} Kg4 {[%emt 0:03:23]} 52. Re4+ {[%emt 0:00:23]} Kf5 {[%emt 0:00:11]} 53. Re3 {[%emt 0:01:06]} Qc6+ {[%emt 0:02:02]} 54. Kg3 {[%emt 0:00:26]} g5 {[%emt 0:01:20]} 55. hxg5 {[%emt 0:00:37]} hxg5 {[%emt 0:00:45]} 56. Rf3+ {[%emt 0:00:10]} Kg6 {[%emt 0:00:30]} 57. Be3 {[%emt 0:01:10]} Qe4 {[%emt 0:01:07]} 58. Kf2 {[%emt 0:00:31]} g4 {[%emt 0:01:10]} 59. Rg3 {[%emt 0:00:50]} Kh5 {[%emt 0:01:23]} 60. Kg1 {[%emt 0:00:22]} Qb1+ {[%emt 0:02:58]} 61. Kg2 {[%emt 0:00:18]} Qc2+ {[%emt 0:00:09]} 62. Bf2 {[%emt 0:00:15]} Kg5 {[%emt 0:01:52]} 63. Kg1 {[%emt 0:00:15]} Qd1+ {[%emt 0:00:53]} 64. Kg2 {[%emt 0:00:08]} Qd5+ {[%emt 0:00:10]} 65. Kg1 {[%emt 0:00:23]} Kf4 {[%emt 0:00:23]} 66. Kh2 {[%emt 0:00:15]} Kf5 {[%emt 0:04:40]} 67. Kg1 {[%emt 0:00:50]} Qd1+ {[%emt 0:01:27]} 68. Kg2 {[%emt 0:00:07]} Qd5+ {[%emt 0:01:07]} 69. Kg1 {[%emt 0:00:05]} Qd1+ {[%emt 0:00:25]} 70. Kg2 {[%emt 0:00:09]} Qb1 {[%emt 0:01:03]} 71. Kh2 {[%emt 0:00:18]} Qf1 {[%emt 0:01:14]} 72. Rg2 {[%emt 0:00:50]} Ke4 {[%emt 0:01:26]} 73. Bg3 {[%emt 0:04:54]} Qb1 {[%emt 0:01:14]} 74. Bc7 {[%emt 0:00:35]} Kf5 {[%emt 0:02:19]} 75. Rf2+ {[%emt 0:00:06]} Kg5 {[%emt 0:00:21]} 76. Rg2 {[%emt 0:00:24]} Qb3 {[%emt 0:00:58]} 77. Rg3 {[%emt 0:00:17]} Qc2+ {[%emt 0:00:13]} 78. Kg1 {[%emt 0:00:19]} Qc1+ {[%emt 0:01:09]} 79. Kg2 {[%emt 0:00:17]} Qe1 {[%emt 0:00:45]} 80. Kh2 {[%emt 0:00:46]} Qd2+ {[%emt 0:01:49]} 81. Rg2 {[%emt 0:00:19]} Qc3 {[%emt 0:00:39]} 82. Rg3 {[%emt 0:00:16]} Qd2+ {[%emt 0:00:08]} 83. Rg2 {[%emt 0:00:26]} Qd5 {[%emt 0:00:33]} 84. Rg3 {[%emt 0:01:36]} Qe4 {[%emt 0:01:09]} 85. Rg2 {[%emt 0:00:52]} Kf5 {[%emt 0:00:06]} 86. Rf2+ {[%emt 0:00:31]} Ke6 {[%emt 0:00:33]} 87. Rg2 {[%emt 0:00:18]} Kd7 {[%emt 0:00:47]} 88. Rg3 {[%emt 0:00:13]} Kc6 {[%emt 0:00:22]} 89. Rg2 {[%emt 0:00:31]} 1/2-1/2

[Event "Netanya Open 2019"]
[Site "Netanya"]
[Date "2019.06.27"]
[Round "5.24"]
[White "Hoffmann, Yair"]
[Black "Parkhov, Yair"]
[Result "1/2-1/2"]
[ECO "E63"]
[WhiteElo "2140"]
[BlackElo "2354"]
[Annotator "NA"]
[PlyCount "32"]
[EventDate "2019.06.23"]
[EventType "swiss"]
[EventCountry "ISR"]
[SourceTitle "playchess.com"]
[Source "ChessBase"]
[SourceQuality "1"]
[TimeControl "40/5400+30:1800+30"]

1. d4 {[%emt 0:00:00]} Nf6 {[%emt 0:00:00]} 2. Nf3 {[%emt 0:00:19]} g6 {[%emt 0:00:00]} 3. c4 {[%emt 0:02:55]} Bg7 {[%emt 0:00:00]} 4. g3 {[%emt 0:00:08]} O-O {[%emt 0:00:23]} 5. Bg2 {[%emt 0:00:06]} d6 {[%emt 0:03:05]} 6. O-O {[%emt 0:00:32]} Nc6 {[%emt 0:00:08]} 7. Nc3 {[%emt 0:00:30]} a6 {[%emt 0:00:32]} 8. Qd3 {[%emt 0:21:37]} Nd7 {[%emt 0:10:38]} 9. b3 {[%emt 0:07:04]} Rb8 {[%emt 0:07:41]} 10. Bb2 {[%emt 0:11:41]} b5 {[%emt 0:14:04]} 11. e3 {[%emt 0:06:43]} e5 {[%emt 0:20:50]} 12. Nd5 {[%emt 0:15:51]} exd4 {[%emt 0:03:48]} 13. exd4 {[%emt 0:00:14]} Nf6 {[%emt 0:03:07]} 14. Ne3 {[%emt 0:00:45]} Ng4 {[%emt 0:05:19]} 15. Bc3 {[%emt 0:06:27]} Nxe3 {[%emt 0:06:15]} 16. fxe3 {[%emt 0:00:20]} Qe7 {[%emt 0:02:44]} 1/2-1/2

[Event "Netanya Open 2019"]
[Site "Netanya"]
[Date "2019.06.27"]
[Round "5.25"]
[White "Globus, Or"]
[Black "Katkov, Michelle"]
[Result "1-0"]
[ECO "A18"]
[WhiteElo "2352"]
[BlackElo "2112"]
[Annotator "NA"]
[PlyCount "41"]
[EventDate "2019.06.23"]
[EventType "swiss"]
[EventCountry "ISR"]
[SourceTitle "playchess.com"]
[Source "ChessBase"]
[SourceQuality "1"]
[TimeControl "40/5400+30:1800+30"]

1. c4 {[%emt 0:00:06]} Nf6 {[%emt 0:00:05]} 2. Nc3 {[%emt 0:00:10]} e6 {[%emt 0:05:13]} 3. e4 {[%emt 0:00:20]} d5 {[%emt 0:01:40]} 4. cxd5 {[%emt 0:00:08]} exd5 {[%emt 0:00:05]} 5. e5 {[%emt 0:00:04]} d4 {[%emt 0:01:17]} 6. exf6 {[%emt 0:00:06]} dxc3 {[%emt 0:00:05]} 7. Bb5+ {[%emt 0:00:21]} Nc6 {[%emt 0:04:22]} 8. Qe2+ {[%emt 0:00:11]} Be6 {[%emt 0:00:27]} 9. dxc3 {[%emt 0:00:03]} gxf6 {[%emt 0:16:17]} 10. Bxc6+ {[%emt 0:15:45]} bxc6 {[%emt 0:00:07]} 11. Nf3 {[%emt 0:01:04]} Bg7 {[%emt 0:12:33]} 12. O-O {[%emt 0:09:01]} O-O {[%emt 0:01:36]} 13. Nd4 {[%emt 0:04:24]} Qd6 {[%emt 0:12:56]} 14. Nxe6 {[%emt 0:05:59]} fxe6 {[%emt 0:01:43]} 15. Rd1 {[%emt 0:00:18]} Qe7 {[%emt 0:01:54]} 16. Qc4 {[%emt 0:03:33]} Rad8 {[%emt 0:09:19]} 17. Be3 {[%emt 0:04:42]} Rd5 {[%emt 0:11:53]} 18. Qxc6 {[%emt 0:02:25]} Rfd8 {[%emt 0:02:15]} 19. Rxd5 {[%emt 0:01:40]} Rxd5 {[%emt 0:00:20]} 20. Bxa7 {[%emt 0:02:13]} Rd2 {[%emt 0:01:08]} 21. Bc5 {[%emt 0:01:18]} 1-0

[Event "Netanya Open 2019"]
[Site "Netanya"]
[Date "2019.06.27"]
[Round "5.26"]
[White "Pravdivetz, Vladimir"]
[Black "Sivan, Yaacov"]
[Result "0-1"]
[ECO "D48"]
[WhiteElo "1927"]
[BlackElo "2320"]
[Annotator "NA"]
[PlyCount "52"]
[EventDate "2019.06.23"]
[EventType "swiss"]
[EventCountry "ISR"]
[SourceTitle "playchess.com"]
[Source "ChessBase"]
[SourceQuality "1"]
[TimeControl "40/5400+30:1800+30"]

1. d4 {[%emt 0:00:00]} Nf6 {[%emt 0:00:04]} 2. Nf3 {[%emt 0:00:00]} d5 {[%emt 0:00:13]} 3. c4 {[%emt 0:00:05]} c6 {[%emt 0:00:10]} 4. Nc3 {[%emt 0:00:46]} e6 {[%emt 0:00:09]} 5. e3 {[%emt 0:00:43]} Nbd7 {[%emt 0:00:18]} 6. Bd3 {[%emt 0:00:40]} dxc4 {[%emt 0:00:19]} 7. Bxc4 {[%emt 0:00:11]} b5 {[%emt 0:00:09]} 8. Bd3 {[%emt 0:00:10]} a6 {[%emt 0:00:13]} 9. Ne4 {[%emt 0:03:03]} c5 {[%emt 0:03:15]} 10. dxc5 {[%emt 0:02:28]} Nxc5 {[%emt 0:01:30]} 11. Nxc5 {[%emt 0:00:12]} Bxc5 {[%emt 0:00:15]} 12. O-O {[%emt 0:04:13]} Bb7 {[%emt 0:09:49]} 13. Qe2 {[%emt 0:00:13]} O-O {[%emt 0:03:21]} 14. Rd1 {[%emt 0:00:11]} Qe7 {[%emt 0:02:13]} 15. Bd2 {[%emt 0:02:30]} e5 {[%emt 0:06:00]} 16. e4 {[%emt 0:00:01]} Rfd8 {[%emt 0:10:20]} 17. Be1 {[%emt 0:09:12]} Rd7 {[%emt 0:14:17]} 18. Bc2 {[%emt 0:13:34]} Rad8 {[%emt 0:03:54]} 19. Rxd7 {[%emt 0:00:15]} Rxd7 {[%emt 0:01:46]} 20. g3 {[%emt 0:06:27]} Bb6 {[%emt 0:06:37]} 21. a3 {[%emt 0:20:02]} Qe6 {[%emt 0:02:56]} 22. Kg2 {[%emt 0:06:43]} Rc7 {[%emt 0:14:13]} 23. Bd3 {[%emt 0:04:06]} Nd7 {[%emt 0:00:53]} 24. b4 {[%emt 0:13:13]} Qb3 {[%emt 0:01:18]} 25. a4 {[%emt 0:07:55]} bxa4 {[%emt 0:02:17]} 26. Bxa6 {[%emt 0:00:44]} Ba8 {[%emt 0:03:51]} 0-1

[Event "Netanya Open 2019"]
[Site "Netanya"]
[Date "2019.06.27"]
[Round "5.27"]
[White "Friedland, Moshe"]
[Black "Sokolovsky, Yahli"]
[Result "1-0"]
[ECO "C54"]
[WhiteElo "2298"]
[BlackElo "2074"]
[Annotator "NA"]
[PlyCount "91"]
[EventDate "2019.06.23"]
[EventType "swiss"]
[EventCountry "ISR"]
[SourceTitle "playchess.com"]
[Source "ChessBase"]
[SourceQuality "1"]
[TimeControl "40/5400+30:1800+30"]

1. e4 {[%emt 0:00:00]} e5 {[%emt 0:00:00]} 2. Nf3 {[%emt 0:00:00]} Nc6 {[%emt 0:00:00]} 3. Bc4 {[%emt 0:00:00]} Bc5 {[%emt 0:00:07]} 4. c3 {[%emt 0:00:00]} Nf6 {[%emt 0:00:09]} 5. d4 {[%emt 0:07:31]} exd4 {[%emt 0:01:17]} 6. e5 {[%emt 0:00:10]} d5 {[%emt 0:01:25]} 7. Bb5 {[%emt 0:00:05]} Ne4 {[%emt 0:06:45]} 8. cxd4 {[%emt 0:00:45]} Bb4+ {[%emt 0:00:58]} 9. Bd2 {[%emt 0:01:07]} Nxd2 {[%emt 0:03:17]} 10. Nbxd2 {[%emt 0:00:14]} O-O {[%emt 0:01:55]} 11. O-O {[%emt 0:04:55]} Ne7 {[%emt 0:09:37]} 12. a3 {[%emt 0:05:38]} Bxd2 {[%emt 0:00:52]} 13. Qxd2 {[%emt 0:03:01]} f6 {[%emt 0:04:43]} 14. Rae1 {[%emt 0:13:13]} fxe5 {[%emt 0:17:41]} 15. Nxe5 {[%emt 0:01:35]} Bf5 {[%emt 0:04:51]} 16. g4 {[%emt 0:03:51]} c6 {[%emt 0:06:20]} 17. Ba4 {[%emt 0:02:56]} Bg6 {[%emt 0:04:49]} 18. h4 {[%emt 0:05:22]} Be8 {[%emt 0:15:58]} 19. h5 {[%emt 0:06:53]} Qd6 {[%emt 0:00:58]} 20. Qe3 {[%emt 0:07:15]} Nc8 {[%emt 0:00:40]} 21. Bc2 {[%emt 0:03:42]} Nb6 {[%emt 0:01:13]} 22. b3 {[%emt 0:08:12]} Nd7 {[%emt 0:01:00]} 23. f4 {[%emt 0:02:29]} c5 {[%emt 0:03:44]} 24. g5 {[%emt 0:04:34]} Nxe5 {[%emt 0:09:10]} 25. dxe5 {[%emt 0:00:25]} Qb6 {[%emt 0:00:48]} 26. g6 {[%emt 0:04:30]} hxg6 {[%emt 0:00:56]} 27. hxg6 {[%emt 0:00:01]} Bxg6 {[%emt 0:00:33]} 28. f5 {[%emt 0:00:18]} Bh7 {[%emt 0:00:43]} 29. Rf2 {[%emt 0:02:33]} c4 {[%emt 0:00:30]} 30. Qg5 {[%emt 0:03:24]} Bxf5 {[%emt 0:03:12]} 31. Bxf5 {[%emt 0:01:15]} cxb3 {[%emt 0:00:45]} 32. Qg6 {[%emt 0:05:31]} Qxg6+ {[%emt 0:00:31]} 33. Bxg6 {[%emt 0:00:02]} Rxf2 {[%emt 0:00:21]} 34. Kxf2 {[%emt 0:00:02]} Kf8 {[%emt 0:00:31]} 35. Rb1 {[%emt 0:02:09]} Ke7 {[%emt 0:00:32]} 36. Rxb3 {[%emt 0:00:33]} Ke6 {[%emt 0:00:27]} 37. Rxb7 {[%emt 0:00:33]} Kxe5 {[%emt 0:00:06]} 38. Ke3 {[%emt 0:00:48]} a5 {[%emt 0:00:40]} 39. Rb5 {[%emt 0:00:53]} Ra7 {[%emt 0:00:50]} 40. Be4 {[%emt 0:00:33]} a4 {[%emt 0:00:11]} 41. Rxd5+ {[%emt 0:30:45]} Ke6 {[%emt 0:30:39]} 42. Rc5 {[%emt 0:00:58]} Kf6 {[%emt 0:00:00]} 43. Kf4 {[%emt 0:00:00]} Rd7 {[%emt 0:00:00]} 44. Rc6+ {[%emt 0:00:00]} Kf7 {[%emt 0:00:00]} 45. Ra6 {[%emt 0:00:00]} Rd4 {[%emt 0:00:00]} 46. Ke5 {[%emt 0:00:00]} 1-0

[Event "Netanya Open 2019"]
[Site "Netanya"]
[Date "2019.06.27"]
[Round "5.28"]
[White "Volkov, Yuri"]
[Black "Poleg, Dan"]
[Result "0-1"]
[ECO "A48"]
[WhiteElo "1886"]
[BlackElo "2271"]
[Annotator "NA"]
[PlyCount "86"]
[EventDate "2019.06.23"]
[EventType "swiss"]
[EventCountry "ISR"]
[SourceTitle "playchess.com"]
[Source "ChessBase"]
[SourceQuality "1"]
[TimeControl "40/5400+30:1800+30"]

1. d4 {[%emt 0:00:00]} Nf6 {[%emt 0:00:00]} 2. Nf3 {[%emt 0:00:00]} g6 {[%emt 0:00:10]} 3. Bg5 {[%emt 0:00:21]} Bg7 {[%emt 0:00:24]} 4. Nbd2 {[%emt 0:00:37]} d6 {[%emt 0:05:37]} 5. e3 {[%emt 0:06:39]} O-O {[%emt 0:00:26]} 6. h3 {[%emt 0:00:43]} Nbd7 {[%emt 0:00:54]} 7. Be2 {[%emt 0:01:07]} c5 {[%emt 0:00:23]} 8. c3 {[%emt 0:01:11]} b6 {[%emt 0:00:37]} 9. O-O {[%emt 0:00:38]} Bb7 {[%emt 0:00:38]} 10. a4 {[%emt 0:01:01]} Qc7 {[%emt 0:07:05]} 11. a5 {[%emt 0:07:29]} Rad8 {[%emt 0:01:21]} 12. axb6 {[%emt 0:01:58]} axb6 {[%emt 0:00:13]} 13. Qb3 {[%emt 0:03:09]} Ra8 {[%emt 0:06:30]} 14. Bxf6 {[%emt 0:09:46]} Bxf6 {[%emt 0:01:52]} 15. Bc4 {[%emt 0:05:40]} e6 {[%emt 0:07:28]} 16. e4 {[%emt 0:04:39]} Bg7 {[%emt 0:01:06]} 17. Bd3 {[%emt 0:01:28]} Rfb8 {[%emt 0:00:45]} 18. Rfe1 {[%emt 0:03:15]} b5 {[%emt 0:06:11]} 19. Qc2 {[%emt 0:09:10]} Qb6 {[%emt 0:01:40]} 20. e5 {[%emt 0:08:19]} Rxa1 {[%emt 0:02:36]} 21. Rxa1 {[%emt 0:06:00]} cxd4 {[%emt 0:01:11]} 22. cxd4 {[%emt 0:00:48]} dxe5 {[%emt 0:00:12]} 23. dxe5 {[%emt 0:00:21]} Nxe5 {[%emt 0:00:19]} 24. Nxe5 {[%emt 0:00:31]} Bxe5 {[%emt 0:00:07]} 25. Nf3 {[%emt 0:04:31]} Bxf3 {[%emt 0:03:17]} 26. gxf3 {[%emt 0:04:56]} Qd4 {[%emt 0:00:06]} 27. Bf1 {[%emt 0:06:07]} b4 {[%emt 0:01:00]} 28. Qe4 {[%emt 0:02:01]} Qxb2 {[%emt 0:00:44]} 29. Ra8 {[%emt 0:00:57]} Rxa8 {[%emt 0:00:11]} 30. Qxa8+ {[%emt 0:00:01]} Kg7 {[%emt 0:00:07]} 31. Qe4 {[%emt 0:03:34]} Bd4 {[%emt 0:00:06]} 32. Qe2 {[%emt 0:00:29]} Qxe2 {[%emt 0:00:08]} 33. Bxe2 {[%emt 0:00:01]} b3 {[%emt 0:00:07]} 34. Bc4 {[%emt 0:01:19]} b2 {[%emt 0:00:06]} 35. Bd3 {[%emt 0:00:08]} g5 {[%emt 0:00:05]} 36. Kg2 {[%emt 0:00:59]} f5 {[%emt 0:00:22]} 37. Kg3 {[%emt 0:00:56]} Kf6 {[%emt 0:00:06]} 38. f4 {[%emt 0:01:30]} gxf4+ {[%emt 0:00:12]} 39. Kxf4 {[%emt 0:00:41]} Bxf2 {[%emt 0:00:06]} 40. Kf3 {[%emt 0:00:21]} Bd4 {[%emt 0:00:06]} 41. Ke2 {[%emt 0:31:08]} e5 {[%emt 0:30:13]} 42. Bb1 {[%emt 0:00:20]} e4 {[%emt 0:00:06]} 43. Bc2 {[%emt 0:00:55]} Ke5 {[%emt 0:00:05]} 0-1

[Event "Netanya Open 2019"]
[Site "Netanya"]
[Date "2019.06.27"]
[Round "5.29"]
[White "Kushnir, Arie"]
[Black "Cohen Revivo, Shoham"]
[Result "0-1"]
[WhiteElo "1662"]
[BlackElo "2225"]
[PlyCount "96"]
[EventDate "2019.06.23"]
[EventType "swiss"]
[EventRounds "9"]
[EventCountry "ISR"]
[TimeControl "40/5400+30:1800+30"]

1. e4 c5 2. Nf3 Nc6 3. Bb5 g6 4. O-O Bg7 5. Re1 e5 6. d3 Nge7 7. c3 a6 8. Ba4 b5 9. Bc2 O-O 10. Bg5 d6 11. Qc1 Bg4 12. Bd1 Be6 13. Bh6 f6 14. Na3 Qd7 15. Nc2 d5 16. d4 dxe4 17. Rxe4 Bxh6 18. Qxh6 Nf5 19. Qd2 Rad8 20. Qe1 cxd4 21. cxd4 Bd5 22. Rg4 Bxf3 23. Bxf3 Ncxd4 24. Be4 Nxc2 25. Bxc2 Nd4 26. Bd1 Nc2 27. Rxg6+ hxg6 28. Bxc2 Qg4 29. h3 Qg5 30. Qe4 Rd2 31. Re1 Rfd8 32. f4 exf4 33. Bb3+ Kh8 34. Qc6 Rf8 35. Re7 f3 36. Qxf3 Qc5+ 37. Re3 Rd3 38. Kf2 Qd4 39. Ke2 Rd2+ 40. Kf1 Rxb2 41. Re1 Rd2 42. Re4 Qd3+ 43. Ke1 Qxf3 44. gxf3 Rh2 45. Be6 f5 46. Rh4+ Kg7 47. Bd5 Rd8 48. Bb3 Rd3 0-1

[Event "Netanya Open 2019"]
[Site "Netanya"]
[Date "2019.06.27"]
[Round "5.30"]
[White "Aleksikov, Oleksandr"]
[Black "Tsyn, Igor"]
[Result "1-0"]
[WhiteElo "2234"]
[BlackElo "2002"]
[PlyCount "125"]
[EventDate "2019.06.23"]
[EventType "swiss"]
[EventRounds "9"]
[EventCountry "ISR"]
[TimeControl "40/5400+30:1800+30"]

1. e4 e6 2. d4 d5 3. Nc3 Bb4 4. e5 Ne7 5. a3 Bxc3+ 6. bxc3 c5 7. a4 Qc7 8. Nf3 b6 9. Bb5+ Nd7 10. h4 a6 11. Bd3 f6 12. Bf4 c4 13. Bf1 O-O 14. Qd2 fxe5 15. Nxe5 Nxe5 16. Bxe5 Qd7 17. Be2 Ng6 18. Bg3 Nh8 19. Bg4 Qe7 20. O-O Bd7 21. Rfe1 Nf7 22. Qe3 Rae8 23. Bh5 Rc8 24. Bf3 Qf6 25. Re2 Nh6 26. Qg5 Nf5 27. Be5 Qh6 28. Qxh6 Nxh6 29. Kh2 Rfe8 30. g3 Kf7 31. Bh5+ g6 32. Bf3 Ng8 33. Kg1 Nf6 34. Bd6 Rc6 35. Bf4 Rcc8 36. Bg2 Nh5 37. Be5 Ng7 38. Bf3 Kg8 39. Kg2 Kf7 40. Bg4 Kg8 41. Bd6 Rc6 42. Bf4 Rcc8 43. Ree1 Kf7 44. Be5 Rg8 45. Kf1 Rge8 46. Ke2 Nf5 47. h5 g5 48. Kd2 Nh6 49. Be2 Ke7 50. Reb1 b5 51. axb5 axb5 52. Ra7 Ra8 53. Rba1 Rxa7 54. Rxa7 Nf7 55. Bc7 Kf6 56. Bg4 Rc8 57. Bh3 Bc6 58. Bb6 Be8 59. Bc5 Rc6 60. Be7+ Kg7 61. Bxg5 h6 62. Be7 Kg8 63. Ra8 1-0

[Event "Netanya Open 2019"]
[Site "Netanya"]
[Date "2019.06.27"]
[Round "5.31"]
[White "Nissim, Jonathan"]
[Black "Rozen, Eytan"]
[Result "0-1"]
[WhiteElo "2082"]
[BlackElo "2317"]
[PlyCount "88"]
[EventDate "2019.06.23"]
[EventType "swiss"]
[EventRounds "9"]
[EventCountry "ISR"]
[TimeControl "40/5400+30:1800+30"]

1. d4 Nf6 2. c4 e6 3. Nc3 Bb4 4. Qc2 d5 5. cxd5 exd5 6. Bg5 c5 7. dxc5 h6 8. Bh4 g5 9. Bg3 Ne4 10. e3 Qa5 11. Nge2 Bf5 12. Be5 O-O 13. Nd4 Re8 14. Nxf5 Rxe5 15. Nxh6+ Kg7 16. Ng4 Re7 17. Rc1 d4 18. a3 Bxc5 19. b4 Qxa3 20. bxc5 Qxc3+ 21. Qxc3 Nxc3 22. Bd3 Nd7 23. O-O Nxc5 24. Bc4 N5a4 25. exd4 Rc8 26. Bd3 Nb2 27. Bb5 Rec7 28. Rc2 Nxb5 29. Rxb2 Nxd4 30. f4 gxf4 31. Rxf4 Rc1+ 32. Kf2 Ne6 33. Re4 Nc5 34. Re3 a5 35. h4 f5 36. Ne5 f4 37. Rf3 Ne4+ 38. Ke2 Nc3+ 39. Kd2 Ne4+ 40. Kd3 Nc5+ 41. Kd2 Rg1 42. Rb5 Rxg2+ 43. Kd1 Rd8+ 44. Kc1 Rd5 0-1

[Event "Netanya Open 2019"]
[Site "Netanya"]
[Date "2019.06.27"]
[Round "5.32"]
[White "Gorodetzky, Matan"]
[Black "Levin, Guy"]
[Result "1/2-1/2"]
[WhiteElo "2316"]
[BlackElo "2052"]
[Annotator "RC"]
[PlyCount "106"]
[EventDate "2019.06.23"]
[EventType "swiss"]
[EventRounds "9"]
[EventCountry "ISR"]
[TimeControl "40/5400+30:1800+30"]

1. e4 c5 2. Nf3 d6 3. Bb5+ Bd7 4. Bxd7+ Nxd7 5. Qe2 Ngf6 6. O-O g6 7. c3 Bg7 8. d4 cxd4 9. cxd4 e6 10. Nc3 O-O 11. b3 Rc8 12. Bb2 a6 13. h3 Qa5 14. Qd3 b5 15. a3 Qc7 16. Rfc1 Qb7 17. Nd2 Bh6 18. Re1 Bxd2 19. Qxd2 d5 20. f3 Rc7 21. e5 Nh5 22. Na2 Rfc8 23. Bc3 Ng3 24. Qg5 Nf5 25. Qd2 Qa7 26. Rac1 Ne7 27. Kh1 Nc6 28. Red1 a5 29. Qd3 b4 30. Bb2 Qb6 31. a4 Ne7 32. g4 Rxc1 33. Bxc1 Qc6 34. Bg5 Kf8 35. Qe3 Qb6 36. Bh4 Ng8 37. Qd3 Qc6 38. Rc1 Qb7 39. Rf1 Qc6 40. Rf2 Nb8 41. f4 Qa6 42. Qe3 Nc6 43. f5 exf5 44. gxf5 Nce7 45. Bxe7+ Nxe7 46. Qh6+ Ke8 47. e6 fxe6 48. f6 Nf5 49. Qxh7 Qd3 50. f7+ Kf8 51. Qh8+ Kxf7 52. Qxc8 Qxh3+ 53. Kg1 Qg4+ 1/2-1/2

[Event "Netanya Open 2019"]
[Site "Netanya"]
[Date "2019.06.27"]
[Round "5.34"]
[White "Tzidkiya, Yeshaayahu"]
[Black "Cohen Revivo, Alon"]
[Result "1-0"]
[ECO "C40"]
[WhiteElo "2247"]
[BlackElo "2030"]
[PlyCount "77"]
[EventDate "2019.06.23"]
[EventType "swiss"]
[EventRounds "9"]
[EventCountry "ISR"]
[TimeControl "40/5400+30:1800+30"]

{[%evp 0,7,24,42,10,22,60,102,83,92]} 1. e4 e5 2. Nf3 d5 3. exd5 e4 4. Qe2 Nf6 5. d3 Qxd5 6. Nbd2 Nc6 7. Nxe4 Be6 8. Nc3 Qd7 9. Be3 O-O-O 10. Qd2 Bb4 11. Be2 h6 12. a3 Ba5 13. b4 Bb6 14. O-O Rhe8 15. Bxb6 axb6 16. a4 Bg4 17. a5 Bxf3 18. Bxf3 Nd4 19. Qd1 b5 20. a6 bxa6 21. Rxa6 Qf5 22. Bc6 Nxc6 23. Rxc6 Nd5 24. Nxb5 Re7 25. Rc5 Qf4 26. Na7+ Kb7 27. Nc6 Rd6 28. Nxe7 Nxe7 29. Rc4 Qf5 30. Qg4 Qb5 31. Rc5 Qd7 32. Qe4+ Kb8 33. Ra1 c6 34. Rca5 Nc8 35. Ra8+ Kb7 36. Qe3 c5 37. Qxc5 Rb6 38. Qxc8+ Qxc8 39. R1a7+ 1-0